[Event "FTX Crypto Cup MCCT 2022"]
[Site "Miami"]
[Date "2022.08.11"]
[Round "7.5"]
[White "Carlsen, Magnus"]
[Black "Praggnanandhaa R"]
[Result "0-1"]
[ECO "B30"]
[WhiteElo "2864"]
[BlackElo "2648"]
[Annotator "TA"]
[PlyCount "126"]
[EventDate "2022.08.10"]
[EventType "tourn"]
[EventCountry "USA"]
[SourceTitle "playchess.com"]
[Source "ChessBase"]
[SourceQuality "1"]
[TimeControl "300+3"]

{[%evp 14,126,2,0,0,0,0,0,0,0,0,8,8,0,15,0,0,-11,-8,-10,-6,-29,-42,-27,-39,-43,-18,-59,-40,-69,-76,-83,-43,-53,-26,-66,-49,-50,-34,-44,-41,-105,-33,-29,-34,-29,-12,-64,-43,-56,-51,-77,-75,-338,-344,-337,-338,-330,-319,-318,-285,-429,-424,-466,-466,-459,-459,-1319,-1326,-1255,-1252,-1202,-1215,-1151,-1158,-1089,-1076,-883,-732,-29974,-29974,-29971,-29954,-29975,-29974,-29975,-29977,-29984,-29982,-29991,-29953,-29986,-29967,-29954,-29959,-12834,-12660,-29956,-29958,-29984,-6327,-29980,-29981,-29991,-5591,-29983,-29982,-29985,-29978,-29985,-29985,-29980,-29981,-29980,-6389]} 1. e4 {[%emt 0:00:00]} c5 {[%emt 0:00:00]} 2. Nc3 {[%emt 0:00:22]} Nc6 {[%emt 0:00:03]} 3. Bb5 {[%emt 0:00:01]} Nd4 {[%emt 0:00:02]} 4. Nf3 {[%emt 0:00:02]} e6 {[%emt 0:00:04]} 5. O-O {[%emt 0:00:07]} a6 {[%emt 0:00:03]} 6. Bd3 {[%emt 0:00:03]} Nc6 {[%emt 0:00:01]} 7. Be2 {[%emt 0:00:03]} Nd4 {[%emt 0:00:02]} 8. Bd3 {[%emt 0:00:02]} Nc6 {[%emt 0:00:00] B30: Sicilian: 2...Nc6 3 Bb5, lines without ...g6.} 9. b3 {[%emt 0:00:19]} d6 {[%emt 0:00:18]} 10. Bb2 {[%emt 0:00:05]} Nf6 {[%emt 0:00:02][%cal Bg8f6,Bf6d7,Bd7e5,Be5f3][%mdl 32] The position is equal.} 11. Re1 {[%emt 0:00:08][%cal Bf1e1,Be1e5,Be5c5,Bc5c4,Bc4e4,Be4e3][%mdl 32]} g6 $5 {[%emt 0:00:01][%mdl 4] 11...Ne5 is a critical line. Leaves trodden paths.} 12. e5 {[%emt 0:00:18]} Nxe5 {[%emt 0:00:13]} 13. Nxe5 {[%emt 0:00:00]} dxe5 {[%emt 0:00:01]} 14. Rxe5 {[%emt 0:00:05]} Bg7 {[%emt 0:00:02][%cal Of6g4]} 15. Rxc5 {[%emt 0:00:17]} Nd7 $1 {[%emt 0:00:09]} 16. Rc4 {[%emt 0:00:02]} Ne5 {[%emt 0:00:13][%csl LRc4,LRd3] [#]} 17. Ne2 $146 {[%emt 0:00:08] [#]} ({Predecessor:} 17. Re4 Nxd3 18. cxd3 O-O 19. Na4 Qxd3 20. Bxg7 Kxg7 21. Re3 Qd6 22. Qc2 Rd8 23. Qc3+ Kg8 24. Nb2 Bd7 25. Nc4 {½-½ (41) Samsonkin,A (2428)-Liang,J (2443) Ottawa 2022}) 17... Nf3+ $1 {[%emt 0:00:25]} 18. gxf3 {[%emt 0:00:04]} Bxb2 {[%emt 0:00:00]} 19. Rb1 {[%emt 0:00:02]} Bg7 {[%emt 0:00:03][%mdl 1024] Black has compensation.} 20. a4 {[%emt 0:00:13]} O-O {[%emt 0:00:04]} 21. Re4 {[%emt 0:00:05]} Bd7 {[%emt 0:00:16]} 22. Re3 {[%emt 0:00:06]} e5 {[%emt 0:00:32]} 23. Be4 {[%emt 0:00:02]} Rb8 {[%emt 0:00:37]} (23... Bc8 $5 {[%cal Rf7f5]}) 24. c4 {[%emt 0:00:02]} Qh4 {[%emt 0:00:28]} 25. Bd5 {[%emt 0:00:05]} Kh8 {[%emt 0:00:11]} 26. Qe1 {[%emt 0:00:04]} f5 {[%emt 0:00:33]} 27. Kh1 {[%emt 0:00:05]} (27. Rd3 $15) 27... b6 {[%emt 0:00:15]} (27... f4 $17 28. Rd3 Rf5) 28. Nc3 $15 {[%emt 0:00:05]} Rbe8 {[%emt 0:00:04]} 29. Qg1 {[%emt 0:00:06]} Bh6 {[%emt 0:00:09]} 30. b4 {[%emt 0:00:24]} Bxe3 {[%emt 0:00:17]} 31. fxe3 {[%emt 0:00:03]} f4 {[%emt 0:00:05]} 32. exf4 {[%emt 0:00:04]} Qxf4 {[%emt 0:00:09] ...Be6 is the strong threat.} 33. Qxb6 {[%emt 0:00:06][%mdl 8192] This move loses the game for White.} (33. Qe3 $17) 33... Qxd2 $19 {[%emt 0:00:06]} 34. Ne4 {[%emt 0:00:56]} Qd3 {[%emt 0:00:03] Really sharp!} 35. Re1 {[%emt 0:00:00]} Qxf3+ {[%emt 0:00:07]} 36. Kg1 {[%emt 0:00:01]} Qg4+ {[%emt 0:00:16]} ({Don't blunder} 36... Rb8 $2 37. Qc7 Qg4+ 38. Kh1 $19) 37. Ng3 {[%emt 0:00:23]} (37. Kh1 {might work better.} Qf3+ 38. Kg1) 37... Bxa4 {[%emt 0:00:18]} 38. Qxa6 {[%emt 0:00:05]} Qd4+ {[%emt 0:00:06]} ({But not} 38... Qf4 $2 39. Kh1 Qd2 40. Rf1 Rxf1+ 41. Nxf1 $19) 39. Kh1 {[%emt 0:00:01]} Bb3 {[%emt 0:00:09]} 40. Re4 {[%emt 0:00:22]} (40. Qa1 $142 Bxc4 41. Bxc4 Qxc4 42. Rxe5) 40... Qd1+ {[%emt 0:00:03]} 41. Kg2 {[%emt 0:00:02]} Bc2 {[%emt 0:00:07]} 42. Re2 {[%emt 0:01:03]} Bd3 {[%emt 0:00:05]} 43. Qa2 {[%emt 0:00:01]} Bxe2 {[%emt 0:00:04]} 44. Qxe2 {[%emt 0:00:00]} Qd4 {[%emt 0:00:09]} 45. b5 {[%emt 0:00:01]} Rd8 {[%emt 0:00:00]} 46. Kh3 {[%emt 0:00:37]} Rxd5 {[%emt 0:00:03]} 47. cxd5 {[%emt 0:00:01]} Qxd5 {[%emt 0:00:01] KQR-KQN} 48. Ne4 {[%emt 0:00:07]} Rf4 {[%emt 0:00:13]} 49. Ng3 {[%emt 0:00:06]} h5 {[%emt 0:00:06]} 50. Qc2 {[%emt 0:00:03]} Kg7 {[%emt 0:00:05]} 51. b6 {[%emt 0:00:06]} Rf7 {[%emt 0:00:02]} 52. Qb2 {[%emt 0:00:02]} Rb7 {[%emt 0:00:02]} 53. Qc3 {[%emt 0:00:01]} Qe6+ {[%emt 0:00:02]} 54. Kg2 {[%emt 0:00:01]} Qxb6 {[%emt 0:00:06] [#] ( -> ...Qd4)} 55. Qxe5+ {[%emt 0:00:01]} Qf6 {[%emt 0:00:01]} 56. Qd5 {[%emt 0:00:01]} Re7 {[%emt 0:00:03]} (56... Rb2+ $142 57. Kh1 Kh6 58. Qe4 Qf2 59. Nf5+ Qxf5 60. Qxf5 gxf5 61. Kg1 f4 62. h4 Kg6 63. Kh1 Kf5 64. Kg1 f3 65. Kf1 Re2 66. Kg1 Kf4 67. Kh1 Kg3 68. Kg1 Re1#) 57. Qc5 {[%emt 0:00:05]} h4 {[%emt 0:00:03]} 58. Nf1 {[%emt 0:00:01]} Qe5 {[%emt 0:00:05]} (58... Re2+ $142 59. Kg1 h3 60. Qc7+ Kh6 61. Qg3 Qd4+ 62. Ne3 Rxe3 63. Qxh3+ Rxh3+ 64. Kh1 Qd2 65. Kg1 Rxh2 66. Kf1 Rh1#) 59. Qf2 {[%emt 0:00:03]} Qe4+ {[%emt 0:00:03] Black mates.} 60. Kg1 {[%emt 0:00:01]} Qg4+ {[%emt 0:00:01]} 61. Kh1 {[%emt 0:00:01]} Re2 {[%emt 0:00:02]} 62. Qa7+ {[%emt 0:00:03]} Kh6 {[%emt 0:00:01][%csl Ge2][%cal Rg4g2]} 63. Qa8 {[%emt 0:00:06]} Qe4+ {[%emt 0:00:03] Weighted Error Value: White=0.55/Black=0.05 (flawless)} (63... Qd4 $142 64. Qf3 Rf2 65. Qe3+ Qxe3 66. Nxe3 Kg5 67. Kg1 Re2 68. Nc4 h3 69. Kf1 Rxh2 70. Ke1 Ra2 71. Nd2 Kf4 72. Nf1 h2 73. Nxh2 Rxh2 74. Kd1 Ke3 75. Kc1 Kd3 76. Kb1 Kc3 77. Ka1 Kb3 78. Kb1 Rh1#) 0-1

[Event "FTX Crypto Cup MCCT 2022"]
[Site "Miami"]
[Date "2022.08.11"]
[Round "7.6"]
[White "Praggnanandhaa R"]
[Black "Carlsen, Magnus"]
[Result "1-0"]
[ECO "B06"]
[WhiteElo "2648"]
[BlackElo "2864"]
[Annotator "TA"]
[PlyCount "103"]
[EventDate "2022.08.10"]
[EventType "tourn"]
[EventCountry "USA"]
[SourceTitle "playchess.com"]
[Source "ChessBase"]
[SourceQuality "1"]
[TimeControl "300+3"]

{[%evp 10,103,31,24,20,15,23,34,21,16,26,22,36,40,40,33,26,36,31,31,34,26,41,27,25,31,31,13,25,22,25,22,24,4,64,60,57,64,70,0,0,0,0,0,0,0,0,0,0,0,0,0,0,0,0,0,0,-4,0,-20,-20,-20,0,-20,-20,-129,-135,-261,-259,-362,-333,-1089,-1044,-5310,-1950,-5097,-2951,-2002,-762,-5789,-5731,-6183,-6086,-29996,-5569,-29990,-1054,-889,-412,-412,-411,-327,0,0,241,240]} 1. d4 {[%emt 0:00:00]} g6 {[%emt 0:00:00]} 2. e4 {[%emt 0:00:03]} Bg7 {[%emt 0:00:02]} 3. Nf3 {[%emt 0:00:06]} d6 {[%emt 0:00:03]} 4. Bc4 {[%emt 0:00:01]} Nf6 {[%emt 0:00:01]} 5. Qe2 {[%emt 0:00:01]} Nc6 {[%emt 0:00:11]} 6. h3 {[%emt 0:00:09]} e5 {[%emt 0:00:12] B06: Modern Defence.} 7. dxe5 {[%emt 0:00:07]} Nxe5 {[%emt 0:00:16]} 8. Nxe5 {[%emt 0:00:05]} dxe5 {[%emt 0:00:00] White is slightly better.} 9. O-O {[%emt 0:00:05]} O-O {[%emt 0:00:02]} (9... Nh5 {keeps more tension.} 10. Qf3 O-O 11. Rd1 Qh4) 10. Rd1 {[%emt 0:00:01]} Qe7 {[%emt 0:00:13]} 11. b3 {[%emt 0:00:15]} Rd8 {[%emt 0:00:02]} 12. Rxd8+ {[%emt 0:00:01]} Qxd8 {[%emt 0:00:02] [#]} 13. Nc3 $146 {[%emt 0:00:02]} ({Predecessor:} 13. Bb2 Nh5 14. Nc3 c6 15. Qf3 Nf4 16. Ne2 Ne6 17. Ng3 b5 18. Rd1 Qc7 19. Bf1 {0-1 (42) Hegedus,P (1822)-Molnar,L (2057) Budapest 2015}) 13... c6 {[%emt 0:00:01]} 14. a4 {[%emt 0:00:05] Inhibits b5.} Qe8 {[%emt 0:00:36]} 15. Be3 {[%emt 0:00:08]} Be6 {[%emt 0:00:04]} 16. Rd1 {[%emt 0:00:08]} Bf8 {[%emt 0:00:03]} 17. Bxe6 {[%emt 0:01:12]} Qxe6 {[%emt 0:00:02]} 18. Rd3 {[%emt 0:00:03]} a6 {[%emt 0:00:37]} 19. Qd1 {[%emt 0:01:08]} Bb4 {[%emt 0:01:27]} 20. f3 {[%emt 0:00:02]} Qe7 {[%emt 0:00:07]} 21. Kh2 {[%emt 0:00:22]} b5 {[%emt 0:00:04]} (21... Bxc3 $11 22. Rxc3 Rd8) 22. Na2 $14 {[%emt 0:00:54]} Bc5 {[%emt 0:00:07]} 23. Bxc5 {[%emt 0:00:14]} Qxc5 {[%emt 0:00:01]} 24. axb5 {[%emt 0:00:05]} (24. Qd2 $14) 24... axb5 $11 {[%emt 0:00:25]} 25. Rd8+ {[%emt 0:00:07]} Rxd8 {[%emt 0:00:04]} 26. Qxd8+ {[%emt 0:00:00][%mdl 4096] Endgame KQN-KQN} Kg7 {[%emt 0:00:03]} 27. Qd2 {[%emt 0:00:02]} Nh5 {[%emt 0:00:38]} 28. Nb4 {[%emt 0:00:22]} Nf4 {[%emt 0:00:05]} 29. c3 {[%emt 0:00:01]} h5 {[%emt 0:00:24]} 30. h4 {[%emt 0:00:03]} Ne6 {[%emt 0:00:08]} 31. Nd3 {[%emt 0:00:21]} Qd6 {[%emt 0:00:01]} 32. Qe3 {[%emt 0:00:10]} c5 {[%emt 0:00:01]} 33. Nf2 {[%emt 0:00:10]} Nf4 {[%emt 0:00:10]} 34. g3 {[%emt 0:00:02]} Ne6 {[%emt 0:00:01]} 35. Qd3 {[%emt 0:00:00]} Qb6 {[%emt 0:00:10][%cal Oc5c4] Threatens to win with ...c4!} 36. Kg2 {[%emt 0:00:04]} Qa5 {[%emt 0:00:11]} 37. c4 {[%emt 0:00:06] [#]} (37. Qc2 $11 {remains equal.}) 37... b4 $1 $17 {[%emt 0:00:05] Hoping for ...Qa3.} 38. Qd5 {[%emt 0:00:03]} (38. Qb1 $17 {is the only way for White.}) 38... Qa1 $19 {[%emt 0:00:02]} 39. Nd3 {[%emt 0:00:01]} Qa2+ {[%emt 0:00:04]} 40. Kh3 $2 {[%emt 0:00:06]} (40. Nf2 Qxb3 41. Qxe5+ Kh7 42. Qd5) 40... Qxb3 {[%emt 0:00:07]} 41. Nxe5 {[%emt 0:00:03]} Qb1 {[%emt 0:00:05][%cal Rb1h1]} 42. Kh2 {[%emt 0:00:03] Inhibits Qh1+.} Qb2+ {[%emt 0:00:01]} 43. Kh3 {[%emt 0:00:01]} b3 {[%emt 0:00:01]} (43... Qc1 $142 44. Kg2 b3 45. Nxf7 Qc2+ 46. Kh3 Kxf7) 44. Nd3 {[%emt 0:00:08]} Qc3 {[%emt 0:00:08]} 45. f4 {[%emt 0:00:02]} b2 {[%emt 0:00:03]} 46. Nxb2 {[%emt 0:00:01]} Qxb2 {[%emt 0:00:00]} (46... Nxf4+ $142 47. Kh2 Qxb2+ 48. Qd2 Qxd2+ 49. Kh1 Qg2#) 47. f5 {[%emt 0:00:01] [#]} Qa1 $1 {[%emt 0:00:09]} 48. Kg2 {[%emt 0:00:01]} gxf5 {[%emt 0:00:03]} (48... Qa2+ $142 49. Kg1 Qb1+ 50. Kh2 Qc2+ 51. Kh1 gxf5 52. exf5 Qc1+ 53. Kg2 Nd4 54. Qe5+ Kh7) 49. exf5 {[%emt 0:00:01]} Qb2+ {[%emt 0:00:01]} (49... Nd4 50. f6+ Kxf6 51. Qg5+ Ke6 52. Qd5+ Ke7 53. Qxc5+ Kd7 54. Qd5+ Kc8 55. Qxf7 $15) 50. Kh3 {[%emt 0:00:01]} Qc1 $2 {[%emt 0:00:00]} 51. fxe6 $11 {[%emt 0:00:02] Black must now prevent Qe5+.} fxe6 $2 {[%emt 0:00:06]} (51... Qf1+ $11 {and Black is okay.} 52. Kh2 Qe2+ 53. Kh3 Qf1+ 54. Kh2 Qe2+ 55. Kh3 Qf1+) 52. Qe5+ {[%emt 0:00:05] What a bad dream for Black.  Weighted Error Value: White=0.92/Black=0.69} ({Inferior is} 52. Qxh5 Qh1+ 53. Kg4 Qd1+ 54. Kg5 Qc1+ 55. Kg4 Qxc4+ 56. Kh3 Qf1+ 57. Kh2 Qf2+ 58. Kh3 Qf5+ 59. Qxf5 exf5 $11) 1-0